[Event "GER-ch Youth U14w 2019"]
[Site "Willingen"]
[Date "2019.06.11"]
[Round "4.11"]
[White "Bildat, Emilia"]
[Black "Werner, Rosalie"]
[Result "1-0"]
[ECO "A13"]
[WhiteElo "1649"]
[BlackElo "1610"]
[Annotator "NA"]
[PlyCount "127"]
[EventDate "2019.06.07"]
[EventType "swiss"]
[EventRounds "9"]
[EventCountry "GER"]
[SourceTitle "playchess.com"]
[Source "ChessBase"]
[SourceQuality "1"]
[TimeControl "40/5400+30:1800+30"]

1. c4 {[%emt 0:00:00]} e6 {[%emt 0:00:00]} 2. g3 {[%emt 0:00:00]} d5 {[%emt 0:00:00]} 3. Bg2 {[%emt 0:00:00]} Nf6 {[%emt 0:00:00]} 4. d4 {[%emt 0:01:38]} Bb4+ {[%emt 0:17:04]} 5. Bd2 {[%emt 0:00:22]} Bxd2+ {[%emt 0:05:29]} 6. Nxd2 {[%emt 0:00:28]} Nc6 {[%emt 0:03:32]} 7. e3 {[%emt 0:01:05]} O-O {[%emt 0:01:35]} 8. Ngf3 {[%emt 0:01:00]} Re8 {[%emt 0:07:08]} 9. O-O {[%emt 0:03:09]} Ne7 {[%emt 0:05:59]} 10. b4 {[%emt 0:05:37]} c6 {[%emt 0:07:45]} 11. c5 {[%emt 0:04:14]} Ng6 {[%emt 0:01:41]} 12. Nb3 {[%emt 0:03:35]} Qc7 {[%emt 0:05:02]} 13. a4 {[%emt 0:02:07]} Nd7 {[%emt 0:03:39]} 14. b5 {[%emt 0:04:03]} f6 {[%emt 0:02:37]} 15. Qd2 {[%emt 0:02:18]} e5 {[%emt 0:05:46]} 16. Qa5 {[%emt 0:03:36]} Qxa5 {[%emt 0:01:16]} 17. Nxa5 {[%emt 0:00:05]} e4 {[%emt 0:00:10]} 18. Nd2 {[%emt 0:05:54]} Ne7 {[%emt 0:01:12]} 19. Rab1 {[%emt 0:01:25]} Rb8 {[%emt 0:02:17]} 20. Bh3 {[%emt 0:04:38]} Kf7 {[%emt 0:03:45]} 21. f3 {[%emt 0:04:57]} exf3 {[%emt 0:02:31]} 22. Rxf3 {[%emt 0:01:09]} Ne5 {[%emt 0:06:06]} 23. dxe5 {[%emt 0:01:25]} Bxh3 {[%emt 0:00:10]} 24. exf6 {[%emt 0:01:21]} gxf6 {[%emt 0:00:12]} 25. e4 {[%emt 0:00:44]} Bd7 {[%emt 0:08:28]} 26. Rbf1 {[%emt 0:03:06]} Rf8 {[%emt 0:02:24]} 27. Rxf6+ {[%emt 0:00:49]} Kg7 {[%emt 0:00:15]} 28. Rxf8 {[%emt 0:12:37]} Rxf8 {[%emt 0:00:09]} 29. Rxf8 {[%emt 0:02:39]} Kxf8 {[%emt 0:00:07]} 30. bxc6 {[%emt 0:05:18]} bxc6 {[%emt 0:01:05]} 31. Kf2 {[%emt 0:01:14]} Kf7 {[%emt 0:01:09]} 32. Ke3 {[%emt 0:00:35]} Bg4 {[%emt 0:02:26]} 33. Nb1 {[%emt 0:05:44]} dxe4 {[%emt 0:00:21]} 34. Nc3 {[%emt 0:01:23]} Bf5 {[%emt 0:01:49]} 35. Nxe4 {[%emt 0:01:09]} Nd5+ {[%emt 0:00:37]} 36. Kf3 {[%emt 0:00:29]} Bxe4+ {[%emt 0:02:12]} 37. Kxe4 {[%emt 0:00:07]} Nc3+ {[%emt 0:00:30]} 38. Kd4 {[%emt 0:00:13]} Nxa4 {[%emt 0:00:47]} 39. Nxc6 {[%emt 0:00:33]} a6 {[%emt 0:00:43]} 40. Nb8 {[%emt 0:00:45]} a5 {[%emt 0:00:31]} 41. Nc6 {[%emt 0:34:00]} Kg6 {[%emt 0:31:02]} 42. Nxa5 {[%emt 0:01:10]} Nxc5 {[%emt 0:00:44]} 43. Kxc5 {[%emt 0:00:18]} Kg5 {[%emt 0:00:15]} 44. Nb3 {[%emt 0:00:53]} Kg4 {[%emt 0:00:00]} 45. Nd2 {[%emt 0:00:00]} h5 {[%emt 0:00:00]} 46. Kd4 {[%emt 0:00:00]} h4 {[%emt 0:00:00]} 47. gxh4 {[%emt 0:00:00]} Kxh4 {[%emt 0:00:00]} 48. Ke3 {[%emt 0:00:00]} Kg4 {[%emt 0:00:00]} 49. Kf2 {[%emt 0:00:00]} Kh3 {[%emt 0:00:00]} 50. Nf1 {[%emt 0:00:00]} Kg4 {[%emt 0:00:00]} 51. Kg2 {[%emt 0:00:00]} Kh4 {[%emt 0:00:00]} 52. Ne3 {[%emt 0:00:00]} Kh5 {[%emt 0:00:00]} 53. Kg3 {[%emt 0:00:00]} Kg5 {[%emt 0:00:00]} 54. h4+ {[%emt 0:00:00]} Kh5 {[%emt 0:00:00]} 55. Nf5 {[%emt 0:00:00]} Kg6 {[%emt 0:00:00]} 56. Kg4 {[%emt 0:00:00]} Kf6 {[%emt 0:00:00]} 57. h5 {[%emt 0:00:00]} Kf7 {[%emt 0:00:00]} 58. Kg5 {[%emt 0:00:00]} Kg8 {[%emt 0:00:00]} 59. h6 {[%emt 0:00:00]} Kh7 {[%emt 0:00:00]} 60. Nd6 {[%emt 0:00:00]} Kg8 {[%emt 0:00:00]} 61. Kg6 {[%emt 0:00:00]} Kh8 {[%emt 0:00:00]} 62. Nf7+ {[%emt 0:00:00]} Kg8 {[%emt 0:00:00] normal} 63. h7+ {[%emt 0:00:00]} Kf8 {[%emt 0:00:00]} 64. h8=Q+ {normal} 1-0

[Event "GER-ch Youth U14w 2019"]
[Site "Willingen"]
[Date "2019.06.11"]
[Round "4.12"]
[White "Sinner, Joselyne"]
[Black "Petersen, Sophie"]
[Result "1/2-1/2"]
[ECO "B51"]
[WhiteElo "1521"]
[BlackElo "1430"]
[Annotator "NA"]
[PlyCount "53"]
[EventDate "2019.06.07"]
[EventType "swiss"]
[EventRounds "9"]
[EventCountry "GER"]
[SourceTitle "playchess.com"]
[Source "ChessBase"]
[SourceQuality "1"]
[TimeControl "40/5400+30:1800+30"]

1. e4 {[%emt 0:00:00]} c5 {[%emt 0:00:00]} 2. Nf3 {[%emt 0:00:00]} d6 {[%emt 0:00:00]} 3. Bb5+ {[%emt 0:00:00]} Nd7 {[%emt 0:00:37]} 4. O-O {[%emt 0:00:47]} a6 {[%emt 0:00:48]} 5. Be2 {[%emt 0:02:04]} Ngf6 {[%emt 0:00:57]} 6. Nc3 {[%emt 0:02:25]} e6 {[%emt 0:01:34]} 7. d4 {[%emt 0:03:29]} cxd4 {[%emt 0:01:03]} 8. Nxd4 {[%emt 0:00:08]} Be7 {[%emt 0:01:25]} 9. Be3 {[%emt 0:02:58]} O-O {[%emt 0:00:31]} 10. Qd2 {[%emt 0:03:03]} Nc5 {[%emt 0:00:57]} 11. f3 {[%emt 0:02:25]} Bd7 {[%emt 0:03:49]} 12. Kh1 {[%emt 0:08:31]} Rc8 {[%emt 0:02:27]} 13. Rad1 {[%emt 0:03:46]} b5 {[%emt 0:07:24]} 14. Nb3 {[%emt 0:07:35]} Nxb3 {[%emt 0:03:23]} 15. axb3 {[%emt 0:00:24]} Qc7 {[%emt 0:00:57]} 16. Rc1 {[%emt 0:05:45]} Rfd8 {[%emt 0:01:58]} 17. Rfd1 {[%emt 0:04:26]} Bc6 {[%emt 0:06:54]} 18. Bf4 {[%emt 0:14:28]} e5 {[%emt 0:01:08]} 19. Bg3 {[%emt 0:08:45]} d5 {[%emt 0:06:57]} 20. exd5 {[%emt 0:04:36]} Nxd5 {[%emt 0:02:10]} 21. Nxd5 {[%emt 0:00:10]} Bxd5 {[%emt 0:00:29]} 22. Qe3 {[%emt 0:01:53]} Bf6 {[%emt 0:00:44]} 23. Bd3 {[%emt 0:05:40]} Qe7 {[%emt 0:03:07]} 24. Re1 {[%emt 0:06:37]} Re8 {[%emt 0:00:47]} 25. c4 {[%emt 0:01:15]} bxc4 {[%emt 0:02:43]} 26. bxc4 {[%emt 0:00:06]} Bb7 {[%emt 0:01:09]} 27. Qe2 {[%emt 0:02:13] normal} 1/2-1/2

[Event "GER-ch Youth U14w 2019"]
[Site "Willingen"]
[Date "2019.06.11"]
[Round "4.13"]
[White "Zixin, Li"]
[Black "Avetyan, Manan"]
[Result "0-1"]
[ECO "C45"]
[WhiteElo "1284"]
[BlackElo "1307"]
[Annotator "NA"]
[PlyCount "60"]
[EventDate "2019.06.07"]
[EventType "swiss"]
[EventRounds "9"]
[EventCountry "GER"]
[SourceTitle "playchess.com"]
[Source "ChessBase"]
[SourceQuality "1"]
[TimeControl "40/5400+30:1800+30"]

1. e4 {[%emt 0:00:00]} e5 {[%emt 0:00:00]} 2. Nf3 {[%emt 0:00:00]} Nc6 {[%emt 0:00:00]} 3. d4 {[%emt 0:00:00]} exd4 {[%emt 0:00:00]} 4. Nxd4 {[%emt 0:00:00]} Bc5 {[%emt 0:00:00]} 5. Nb3 {[%emt 0:00:00]} Bb6 {[%emt 0:03:02]} 6. Nc3 {[%emt 0:00:00]} Qf6 {[%emt 0:02:42]} 7. Qe2 {[%emt 0:03:42]} Nge7 {[%emt 0:10:20]} 8. Be3 {[%emt 0:00:09]} Bxe3 {[%emt 0:03:01]} 9. Qxe3 {[%emt 0:00:06]} O-O {[%emt 0:01:56]} 10. O-O-O {[%emt 0:00:11]} a6 {[%emt 0:06:58]} 11. f4 {[%emt 0:02:40]} d6 {[%emt 0:01:52]} 12. h3 {[%emt 0:00:17]} Qh6 {[%emt 0:14:49]} 13. g4 {[%emt 0:00:32]} Bxg4 {[%emt 0:01:28]} 14. Be2 {[%emt 0:01:28]} Bxe2 {[%emt 0:02:28]} 15. Nxe2 {[%emt 0:00:04]} Rfe8 {[%emt 0:02:52]} 16. Rdg1 {[%emt 0:01:59]} Nf5 {[%emt 0:11:07]} 17. Qf3 {[%emt 0:00:24]} Nh4 {[%emt 0:00:34]} 18. Qd3 {[%emt 0:02:44]} Nb4 {[%emt 0:03:34]} 19. Qc4 {[%emt 0:02:40]} c5 {[%emt 0:00:54]} 20. Rg4 {[%emt 0:02:24]} b5 {[%emt 0:01:36]} 21. Rxg7+ {[%emt 0:04:49]} Qxg7 {[%emt 0:01:01]} 22. Qxb4 {[%emt 0:00:49]} cxb4 {[%emt 0:00:19]} 23. Rg1 {[%emt 0:00:06]} Ng2 {[%emt 0:05:57]} 24. e5 {[%emt 0:04:54]} Kf8 {[%emt 0:03:59]} 25. Nd2 {[%emt 0:01:36]} Rad8 {[%emt 0:02:54]} 26. Nf3 {[%emt 0:00:32]} h6 {[%emt 0:03:22]} 27. Ned4 {[%emt 0:00:30]} Qg6 {[%emt 0:03:27]} 28. f5 {[%emt 0:01:06]} Qg3 {[%emt 0:00:39]} 29. h4 {[%emt 0:01:39]} dxe5 {[%emt 0:01:14]} 30. Nxe5 {[%emt 0:00:20]} Rxe5 {[%emt 0:02:22] normal} 0-1

[Event "GER-ch Youth U14w 2019"]
[Site "Willingen"]
[Date "2019.06.12"]
[Round "5.1"]
[White "Yue, Qizhou"]
[Black "Bashylina, Luisa"]
[Result "0-1"]
[ECO "A49"]
[WhiteElo "1840"]
[BlackElo "1886"]
[Annotator "NA"]
[PlyCount "88"]
[EventDate "2019.06.07"]
[EventType "swiss"]
[EventRounds "9"]
[EventCountry "GER"]
[SourceTitle "playchess.com"]
[Source "ChessBase"]
[SourceQuality "1"]
[TimeControl "40/5400+30:1800+30"]

1. d4 {[%emt 0:00:00]} Nf6 {[%emt 0:00:00]} 2. Nf3 g6 {[%emt 0:00:06]} 3. g3 {[%emt 0:00:00]} Bg7 {[%emt 0:00:16]} 4. Bg2 {[%emt 0:00:00]} d6 {[%emt 0:00:10]} 5. b3 c5 {[%emt 0:02:40]} 6. Bb2 {[%emt 0:02:37]} Nbd7 {[%emt 0:02:59]} 7. c4 {[%emt 0:02:48]} O-O {[%emt 0:01:40]} 8. O-O {[%emt 0:01:17]} Rb8 {[%emt 0:06:12]} 9. Nc3 {[%emt 0:01:11]} b6 {[%emt 0:06:38]} 10. e4 {[%emt 0:09:23]} Bb7 {[%emt 0:04:33]} 11. Re1 {[%emt 0:00:50]} Ne8 {[%emt 0:05:55]} 12. Qd2 {[%emt 0:09:36]} Nc7 {[%emt 0:02:29]} 13. d5 {[%emt 0:04:42]} a6 {[%emt 0:05:35]} 14. a4 {[%emt 0:05:48]} Bc8 {[%emt 0:02:09]} 15. Bf1 {[%emt 0:01:28]} Ne5 {[%emt 0:04:02]} 16. Nxe5 {[%emt 0:03:38]} Bxe5 {[%emt 0:01:01]} 17. Ne2 {[%emt 0:05:46]} Bxb2 {[%emt 0:00:39]} 18. Qxb2 {[%emt 0:00:09]} b5 {[%emt 0:00:24]} 19. cxb5 {[%emt 0:07:36]} axb5 {[%emt 0:00:09]} 20. a5 {[%emt 0:00:40]} b4 {[%emt 0:01:40]} 21. Nf4 {[%emt 0:01:18]} Ra8 {[%emt 0:02:45]} 22. e5 {[%emt 0:02:29]} Bb7 {[%emt 0:05:48]} 23. Bc4 {[%emt 0:01:54]} Ba6 {[%emt 0:01:40]} 24. Qe2 {[%emt 0:03:39]} Bxc4 {[%emt 0:01:36]} 25. Qxc4 {[%emt 0:07:05]} Re8 {[%emt 0:03:43]} 26. Re2 {[%emt 0:02:28]} Qb8 {[%emt 0:03:58]} 27. e6 {[%emt 0:04:28]} f6 {[%emt 0:01:02]} 28. Qe4 {[%emt 0:01:41]} Kg7 {[%emt 0:06:39]} 29. h4 {[%emt 0:00:50]} Nb5 {[%emt 0:00:56]} 30. Qd3 {[%emt 0:01:11]} Nd4 {[%emt 0:02:09]} 31. Rea2 {[%emt 0:02:48]} Qb5 {[%emt 0:01:06]} 32. Qe3 {[%emt 0:01:29]} Ra6 {[%emt 0:04:33]} 33. Ne2 {[%emt 0:04:04]} Nxe2+ {[%emt 0:01:45]} 34. Qxe2 {[%emt 0:00:16]} Qb7 {[%emt 0:01:22]} 35. Qc4 {[%emt 0:01:01]} Rb8 {[%emt 0:06:09]} 36. Kg2 {[%emt 0:00:59]} Qa8 {[%emt 0:03:03]} 37. Qe4 {[%emt 0:05:58]} Rb5 {[%emt 0:02:45]} 38. h5 {[%emt 0:02:44]} Rbxa5 {[%emt 0:00:53]} 39. Rxa5 {[%emt 0:00:47]} Rxa5 {[%emt 0:00:07]} 40. Rh1 {[%emt 0:03:20]} Ra1 {[%emt 0:04:42]} 41. Rh2 {[%emt 0:02:37]} Rd1 {[%emt 0:01:22]} 42. hxg6 {[%emt 0:00:42]} hxg6 {[%emt 0:01:23]} 43. Qc4 {[%emt 0:05:33]} Qxd5+ {[%emt 0:00:07]} 44. Qxd5 {[%emt 0:00:16]} Rxd5 {[%emt 0:00:06] normal} 0-1

[Event "GER-ch Youth U14w 2019"]
[Site "Willingen"]
[Date "2019.06.12"]
[Round "5.2"]
[White "Orlova, Alicia"]
[Black "Doll, Rebecca"]
[Result "0-1"]
[ECO "C50"]
[WhiteElo "1490"]
[BlackElo "1678"]
[Annotator "NA"]
[PlyCount "82"]
[EventDate "2019.06.07"]
[EventType "swiss"]
[EventRounds "9"]
[EventCountry "GER"]
[SourceTitle "playchess.com"]
[Source "ChessBase"]
[SourceQuality "1"]
[TimeControl "40/5400+30:1800+30"]

1. e4 {[%emt 0:00:00]} e5 {[%emt 0:00:00]} 2. Nf3 {[%emt 0:00:00]} Nc6 {[%emt 0:00:00]} 3. Bc4 {[%emt 0:00:01]} Bc5 {[%emt 0:00:00]} 4. Nc3 {[%emt 0:00:20]} d6 {[%emt 0:00:24]} 5. d3 {[%emt 0:01:03]} Nf6 {[%emt 0:00:22]} 6. h3 {[%emt 0:02:39]} h6 {[%emt 0:05:32]} 7. Na4 {[%emt 0:03:14]} Bb6 {[%emt 0:04:05]} 8. Nxb6 {[%emt 0:01:03]} axb6 {[%emt 0:00:09]} 9. Be3 {[%emt 0:02:18]} Be6 {[%emt 0:06:46]} 10. Bb3 {[%emt 0:01:07]} Nb4 {[%emt 0:08:43]} 11. Bxe6 {[%emt 0:11:35]} fxe6 {[%emt 0:01:39]} 12. c3 {[%emt 0:01:37]} Nc6 {[%emt 0:00:45]} 13. O-O {[%emt 0:03:56]} O-O {[%emt 0:03:42]} 14. Nh2 {[%emt 0:12:00]} Qe8 {[%emt 0:09:50]} 15. g3 {[%emt 0:13:34]} Qg6 {[%emt 0:06:32]} 16. Kh1 {[%emt 0:05:43]} d5 {[%emt 0:07:57]} 17. exd5 {[%emt 0:02:46]} exd5 {[%emt 0:00:17]} 18. d4 {[%emt 0:05:04]} exd4 {[%emt 0:05:57]} 19. Bxd4 {[%emt 0:01:28]} Ne4 {[%emt 0:06:33]} 20. Qg4 {[%emt 0:05:24]} Qxg4 {[%emt 0:02:45]} 21. Nxg4 {[%emt 0:00:30]} Nxd4 {[%emt 0:01:23]} 22. cxd4 {[%emt 0:00:34]} h5 {[%emt 0:00:24]} 23. Ne3 {[%emt 0:01:15]} Nd2 {[%emt 0:11:37]} 24. Rfd1 {[%emt 0:00:37]} Rxf2 {[%emt 0:01:24]} 25. Kg1 {[%emt 0:01:50]} Raf8 {[%emt 0:07:39]} 26. Nxd5 {[%emt 0:01:55]} g5 {[%emt 0:00:45]} 27. Nxc7 {[%emt 0:04:27]} Re2 {[%emt 0:00:28]} 28. Ne6 {[%emt 0:06:46]} Rff2 {[%emt 0:01:15]} 29. Rxd2 {[%emt 0:00:30]} Rxd2 {[%emt 0:00:27]} 30. Nxg5 {[%emt 0:03:08]} Rxb2 {[%emt 0:00:53]} 31. Rb1 {[%emt 0:01:45]} Rxa2 {[%emt 0:01:38]} 32. Rxb6 {[%emt 0:01:06]} Rfd2 {[%emt 0:00:18]} 33. Rb1 {[%emt 0:02:23]} Rxd4 {[%emt 0:00:26]} 34. Kf1 {[%emt 0:02:08]} Rd3 {[%emt 0:01:11]} 35. g4 {[%emt 0:00:18]} h4 {[%emt 0:01:19]} 36. Ke1 {[%emt 0:00:34]} Rc3 {[%emt 0:00:42]} 37. Rd1 {[%emt 0:00:49]} Kg7 {[%emt 0:00:50]} 38. Ne6+ {[%emt 0:00:23]} Kf6 {[%emt 0:00:21]} 39. Nf4 {[%emt 0:00:27]} Re3+ {[%emt 0:00:12]} 40. Ne2 {[%emt 0:00:36]} Rexe2+ {[%emt 0:00:16]} 41. Kf1 {[%emt 0:30:22]} Rh2 {[%emt 0:30:16] normal} 0-1

[Event "GER-ch Youth U14w 2019"]
[Site "Willingen"]
[Date "2019.06.12"]
[Round "5.3"]
[White "Buchholz, Maja"]
[Black "Butenandt, Svenja"]
[Result "1/2-1/2"]
[ECO "A20"]
[WhiteElo "1657"]
[BlackElo "1722"]
[Annotator "NA"]
[PlyCount "60"]
[EventDate "2019.06.07"]
[EventType "swiss"]
[EventRounds "9"]
[EventCountry "GER"]
[SourceTitle "playchess.com"]
[Source "ChessBase"]
[SourceQuality "1"]
[TimeControl "40/5400+30:1800+30"]

1. c4 {[%emt 0:00:00]} e5 {[%emt 0:00:00]} 2. g3 {[%emt 0:00:00]} Nf6 {[%emt 0:00:00]} 3. Bg2 {[%emt 0:00:00]} d5 {[%emt 0:00:00]} 4. Nc3 {[%emt 0:00:00]} c6 {[%emt 0:06:06]} 5. cxd5 {[%emt 0:02:42]} cxd5 {[%emt 0:00:25]} 6. d4 {[%emt 0:05:00]} e4 {[%emt 0:06:00]} 7. e3 {[%emt 0:03:07]} Nc6 {[%emt 0:05:08]} 8. a3 {[%emt 0:00:57]} Be7 {[%emt 0:01:42]} 9. Nge2 {[%emt 0:00:11]} O-O {[%emt 0:01:16]} 10. O-O {[%emt 0:00:34]} Bf5 {[%emt 0:04:33]} 11. Bd2 {[%emt 0:02:20]} Qd7 {[%emt 0:03:00]} 12. Qb3 {[%emt 0:03:52]} Rfd8 {[%emt 0:05:14]} 13. Rfd1 {[%emt 0:03:06]} h6 {[%emt 0:05:45]} 14. Rac1 {[%emt 0:04:13]} g5 {[%emt 0:05:27]} 15. f3 {[%emt 0:04:15]} Na5 {[%emt 0:10:47]} 16. Qa2 {[%emt 0:00:55]} exf3 {[%emt 0:01:44]} 17. Bxf3 {[%emt 0:00:18]} b6 {[%emt 0:03:20]} 18. Re1 {[%emt 0:15:39]} Kg7 {[%emt 0:07:04]} 19. Nxd5 {[%emt 0:03:25]} Nxd5 {[%emt 0:00:51]} 20. e4 {[%emt 0:00:11]} Be6 {[%emt 0:04:13]} 21. exd5 {[%emt 0:00:24]} Bxd5 {[%emt 0:00:18]} 22. Bxd5 {[%emt 0:00:44]} Qxd5 {[%emt 0:00:06]} 23. Qxd5 {[%emt 0:00:18]} Rxd5 {[%emt 0:00:15]} 24. Bc3 {[%emt 0:05:34]} Nb3 {[%emt 0:02:12]} 25. Rcd1 {[%emt 0:00:53]} Bf6 {[%emt 0:00:53]} 26. Rd3 {[%emt 0:01:35]} Re8 {[%emt 0:02:49]} 27. Kf2 {[%emt 0:02:00]} Nc5 {[%emt 0:03:39]} 28. Rf3 {[%emt 0:02:47]} Ne6 {[%emt 0:04:56]} 29. Rd1 {[%emt 0:03:13]} Red8 {[%emt 0:01:08] normal} 30. Ke3 {[%emt 0:04:47]} Re8 {[%emt 0:02:32] normal} 1/2-1/2

[Event "GER-ch Youth U14w 2019"]
[Site "Willingen"]
[Date "2019.06.12"]
[Round "5.4"]
[White "Oswald, Hannah"]
[Black "Reuter, Elisa"]
[Result "0-1"]
[ECO "B34"]
[WhiteElo "1632"]
[BlackElo "1923"]
[Annotator "NA"]
[PlyCount "63"]
[EventDate "2019.06.07"]
[EventType "swiss"]
[EventRounds "9"]
[EventCountry "GER"]
[SourceTitle "playchess.com"]
[Source "ChessBase"]
[SourceQuality "1"]
[TimeControl "40/5400+30:1800+30"]

1. e4 {[%emt 0:00:00]} c5 {[%emt 0:00:00]} 2. Nf3 {[%emt 0:00:00]} Nc6 {[%emt 0:00:00]} 3. d4 {[%emt 0:00:00]} cxd4 {[%emt 0:00:00]} 4. Nxd4 {[%emt 0:00:00]} Nf6 {[%emt 0:00:00]} 5. Nc3 {[%emt 0:02:01]} e5 {[%emt 0:00:00]} 6. Nb3 {[%emt 0:02:35]} Bb4 {[%emt 0:00:00]} 7. Bd3 {[%emt 0:01:21]} d5 {[%emt 0:00:06]} 8. exd5 {[%emt 0:04:40]} Nxd5 {[%emt 0:00:06]} 9. Bd2 {[%emt 0:01:53]} Nxc3 {[%emt 0:00:48]} 10. bxc3 {[%emt 0:02:02]} Be7 {[%emt 0:03:24]} 11. O-O {[%emt 0:02:07]} Be6 {[%emt 0:01:50]} 12. f4 {[%emt 0:10:11]} exf4 {[%emt 0:09:13]} 13. Bxf4 {[%emt 0:05:26]} O-O {[%emt 0:05:06]} 14. Qh5 {[%emt 0:05:32]} g6 {[%emt 0:00:32]} 15. Qf3 {[%emt 0:05:35]} Bd5 {[%emt 0:02:36]} 16. Qf2 {[%emt 0:03:24]} Bg5 {[%emt 0:08:59]} 17. Nc5 {[%emt 0:06:27]} Bxf4 {[%emt 0:04:21]} 18. Qxf4 {[%emt 0:00:46]} Qe7 {[%emt 0:01:24]} 19. Qf2 {[%emt 0:04:53]} b6 {[%emt 0:03:27]} 20. Nb3 {[%emt 0:04:13]} f5 {[%emt 0:04:43]} 21. Rfe1 {[%emt 0:05:55]} Qf7 {[%emt 0:01:41]} 22. Qf1 {[%emt 0:08:14]} Kg7 {[%emt 0:03:30]} 23. c4 {[%emt 0:10:07]} Be6 {[%emt 0:00:32]} 24. c3 {[%emt 0:02:07]} Rfd8 {[%emt 0:02:26]} 25. Rad1 {[%emt 0:02:57]} Qf6 {[%emt 0:01:16]} 26. Qe2 {[%emt 0:04:34]} Bf7 {[%emt 0:00:33]} 27. Qc2 {[%emt 0:01:53]} Ne5 {[%emt 0:04:15]} 28. Be2 {[%emt 0:02:12]} Nxc4 {[%emt 0:01:57]} 29. Bf3 {[%emt 0:01:32]} Rxd1 {[%emt 0:02:04]} 30. Bxd1 {[%emt 0:00:06]} Rc8 {[%emt 0:01:03]} 31. Bf3 {[%emt 0:01:34] normal} Na3 {[%emt 0:01:19]} 32. Qb2 {[%emt 0:00:43] normal} 0-1

[Event "GER-ch Youth U14w 2019"]
[Site "Willingen"]
[Date "2019.06.12"]
[Round "5.5"]
[White "Adelhardt, Lisa"]
[Black "Schmidt, Pauline"]
[Result "1/2-1/2"]
[ECO "B92"]
[WhiteElo "1293"]
[BlackElo "1620"]
[Annotator "NA"]
[PlyCount "94"]
[EventDate "2019.06.07"]
[EventType "swiss"]
[EventRounds "9"]
[EventCountry "GER"]
[SourceTitle "playchess.com"]
[Source "ChessBase"]
[SourceQuality "1"]
[TimeControl "40/5400+30:1800+30"]

1. e4 {[%emt 0:00:00]} c5 {[%emt 0:00:00]} 2. Nf3 {[%emt 0:01:20]} d6 {[%emt 0:00:00]} 3. d4 {[%emt 0:00:29]} cxd4 {[%emt 0:00:06]} 4. Nxd4 {[%emt 0:00:10]} Nf6 {[%emt 0:00:08]} 5. Nc3 {[%emt 0:02:38]} a6 {[%emt 0:00:09]} 6. Be2 {[%emt 0:02:02]} e5 {[%emt 0:00:18]} 7. Nf3 {[%emt 0:02:07]} Be7 {[%emt 0:02:47]} 8. O-O {[%emt 0:02:57]} O-O {[%emt 0:00:26]} 9. Be3 {[%emt 0:05:42]} Qc7 {[%emt 0:01:42]} 10. Rc1 {[%emt 0:03:34]} b5 {[%emt 0:02:07]} 11. Nd5 {[%emt 0:08:44]} Nxd5 {[%emt 0:00:48]} 12. Qxd5 {[%emt 0:00:10]} Bb7 {[%emt 0:00:09]} 13. Qd3 {[%emt 0:00:29]} Nd7 14. c4 {[%emt 0:06:15]} b4 {[%emt 0:03:48]} 15. Nd2 {[%emt 0:05:23]} Rac8 {[%emt 0:03:59]} 16. b3 {[%emt 0:02:53]} Nc5 {[%emt 0:01:54]} 17. Qc2 {[%emt 0:02:13]} Qd8 {[%emt 0:10:22]} 18. f3 {[%emt 0:05:33]} Bg5 {[%emt 0:01:17]} 19. Bf2 {[%emt 0:01:19]} Bf4 {[%emt 0:02:13]} 20. Rcd1 {[%emt 0:04:43]} Qg5 {[%emt 0:02:39]} 21. Rfe1 {[%emt 0:06:07]} Be3 {[%emt 0:03:56]} 22. Nf1 {[%emt 0:03:17]} Bxf2+ {[%emt 0:01:19]} 23. Kxf2 {[%emt 0:00:12]} Qf4 {[%emt 0:01:56]} 24. Bd3 {[%emt 0:03:47]} Rfe8 {[%emt 0:02:41]} 25. Qd2 {[%emt 0:04:21]} Nxd3+ {[%emt 0:02:50]} 26. Qxd3 {[%emt 0:00:57]} Re6 {[%emt 0:03:17]} 27. Qd2 {[%emt 0:03:14]} Qxd2+ {[%emt 0:01:52]} 28. Rxd2 {[%emt 0:03:15]} Kf8 {[%emt 0:00:38]} 29. Red1 {[%emt 0:01:12]} Ke7 {[%emt 0:00:29]} 30. Ne3 {[%emt 0:00:18]} g6 {[%emt 0:05:15]} 31. Ke2 {[%emt 0:09:11]} Kd7 {[%emt 0:05:36]} 32. Rc1 {[%emt 0:04:35]} Rc5 {[%emt 0:06:11]} 33. Nd5 {[%emt 0:02:49]} Bxd5 {[%emt 0:04:01]} 34. Rxd5 {[%emt 0:00:35]} Rxd5 {[%emt 0:00:51]} 35. cxd5 {[%emt 0:00:34]} Re8 {[%emt 0:00:09]} 36. Kd3 {[%emt 0:00:45]} a5 {[%emt 0:01:37]} 37. Rc2 {[%emt 0:03:11]} Ra8 {[%emt 0:14:46]} 38. Rc4 {[%emt 0:00:33]} Ra7 {[%emt 0:00:23]} 39. Rc2 {[%emt 0:00:49]} Rc7 {[%emt 0:00:50]} 40. Rc4 {[%emt 0:00:17]} Kc8 {[%emt 0:02:29]} 41. g3 {[%emt 0:02:41]} Kb7 {[%emt 0:01:06]} 42. g4 {[%emt 0:04:18]} g5 {[%emt 0:01:35]} 43. Rxc7+ {[%emt 0:02:12]} Kxc7 {[%emt 0:02:53]} 44. Kc4 {[%emt 0:01:52]} Kb6 {[%emt 0:00:21]} 45. h3 {[%emt 0:00:28]} h6 {[%emt 0:01:00]} 46. Kd3 {[%emt 0:00:08]} Kc5 {[%emt 0:04:22]} 47. Ke3 {[%emt 0:00:09]} f6 {[%emt 0:01:07] normal} 1/2-1/2